bitfinex/quotes_ETHUSD_20250110
["timestamp","ask_amount","ask_price","bid_price","bid_amount"]
[1736500656613,0.168391,3306.4,3305.9,0.11059003]
[1736500656940,0.168391,3306.4,3306.1,0.11055034]
[1736500657140,0.168391,3306.4,3306.0,0.33157018]
[1736500657345,0.168391,3306.4,3306.2,0.1105305]
[1736500657497,3.192821,3306.4,3306.1,0.11055034]
[1736500657700,3.192821,3306.4,3306.3,0.11051066]
[1736500657914,3.02452,3306.3,3306.2,0.1105305]
[1736500658130,3.02452,3306.3,3306.0,0.221]
[1736500658328,3.02452,3306.3,3306.2,0.1105305]
[1736500658514,3.02452,3306.3,3306.2,0.221]
[1736500658716,3.02452,3306.3,3306.2,0.3315305]
[1736500658960,0.168391,3306.4,3306.2,0.3315305]
[1736500659338,0.168391,3306.4,3306.2,0.221]
[1736500660856,0.168391,3306.4,3306.3,0.11051066]
[1736500661003,0.168391,3306.4,3306.2,0.221]
[1736500661209,0.168391,3306.4,3306.3,0.11051066]
[1736500662149,0.168391,3306.4,3306.2,0.221]
[1736500662449,0.168391,3306.4,3306.3,0.11051066]
[1736500662602,0.168391,3306.4,3306.3,0.03024034]
[1736500662811,0.168391,3306.4,3306.3,0.11065616]
[1736500663022,0.168391,3306.4,3306.2,0.221]
[1736500663243,0.168391,3306.4,3306.3,0.11065616]
[1736500663447,0.168391,3306.4,3306.2,0.545573]
[1736500663645,0.168391,3306.4,3306.3,0.11065616]
[1736500663853,0.168391,3306.4,3306.2,0.221]
[1736500664032,0.168391,3306.4,3306.3,3.16541512]
[1736500664237,0.168391,3306.4,3306.3,6.16541512]
[1736500664400,0.168391,3306.4,3306.3,6.13517616]
[1736500664600,0.168391,3306.4,3306.3,6.99447058]
[1736500664852,0.168391,3306.4,3306.3,3.96995058]
[1736500665153,0.168391,3306.4,3306.3,0.96995058]
[1736500665338,3.02307,3307.9,3306.7,3.02408]
[1736500665667,3.02303,3308.0,3306.9,5.26073802]
[1736500665951,3.0,3308.5,3307.2,3.02363]
[1736500665952,0.8021,3308.5,3307.2,3.02363]
[1736500666151,3.03886802,3308.5,3307.3,0.221]
[1736500666348,3.02297,3308.1,3307.3,0.33102134]
[1736500666504,3.70748782,3308.5,3307.3,0.33102134]
[1736500666706,3.02302,3308.0,3307.4,0.03023063]
[1736500667028,3.02302,3308.0,3307.5,0.10983086]
[1736500667360,3.02322,3307.8,3307.3,0.221]
[1736500667518,3.02322,3307.8,3307.6,0.10981103]
[1736500667725,3.02322,3307.8,3307.3,0.221]
[1736500667910,3.02334,3307.6,3307.3,0.221]
[1736500668102,3.02334,3307.6,3307.4,0.10984529]
[1736500668422,3.02334,3307.6,3307.5,0.10982547]
[1736500668601,3.02334,3307.6,3307.3,0.221]
[1736500669553,0.7654,3307.9,3307.3,0.221]
[1736500669754,3.02319,3307.8,3307.3,0.221]
[1736500670051,3.02319,3307.8,3307.4,0.10984529]
[1736500670434,3.02319,3307.8,3307.3,0.221]
[1736500670642,3.02319,3307.8,3307.5,0.10982547]
[1736500670804,3.02319,3307.8,3307.4,0.10984529]
[1736500671008,3.02319,3307.8,3307.3,0.221]
[1736500671455,3.02319,3307.8,3307.4,0.10984529]
[1736500671760,3.02319,3307.8,3307.3,0.221]
[1736500672121,3.02319,3307.8,3307.4,0.10984529]
[1736500672441,3.02319,3307.8,3307.3,0.221]
[1736500672885,3.02319,3307.8,3307.4,0.10984529]
[1736500673182,3.02319,3307.8,3307.3,0.221]
[1736500673383,3.02327,3307.7,3307.4,0.10984529]
[1736500673745,3.02327,3307.7,3307.3,0.221]
[1736500674083,3.02327,3307.7,3307.4,0.10931183]
[1736500674285,3.02327,3307.7,3307.3,0.221]
[1736500674640,3.02327,3307.7,3307.4,0.10931183]
[1736500675154,3.02334,3307.6,3307.3,0.221]
[1736500676649,3.02334,3307.6,3307.4,0.221]
[1736500678348,3.02319,3307.8,3307.4,0.221]
[1736500678841,3.02325,3307.7,3307.4,0.221]
[1736500679099,3.02334,3307.6,3307.4,0.221]
[1736500679469,3.02319,3307.8,3307.4,0.221]
[1736500681691,0.7654,3307.9,3307.4,0.221]
[1736500681891,3.02341,3307.6,3307.0,5.28]
[1736500682047,3.02341,3307.6,3307.5,0.221]
[1736500682253,3.02316,3307.8,3307.5,0.221]
[1736500682796,0.8072,3308.2,3307.5,0.221]
[1736500682997,3.02275,3308.3,3307.6,0.10927218]
[1736500683294,3.02275,3308.3,3307.7,0.03022794]
[1736500683493,3.02275,3308.3,3307.7,0.10925236]
[1736500683848,3.02275,3308.3,3307.5,0.221]
[1736500684052,3.02275,3308.3,3307.8,0.10923254]
[1736500684292,3.02275,3308.3,3307.5,0.545453]
[1736500684499,3.02275,3308.3,3307.9,0.10921271]
[1736500684697,3.02275,3308.3,3307.5,0.545453]
[1736500684880,3.02275,3308.3,3308.0,0.1091929]
[1736500685103,3.02275,3308.3,3307.5,0.545453]
[1736500685303,3.02275,3308.3,3308.1,0.10917308]
[1736500685499,3.02275,3308.3,3307.5,0.545453]
[1736500685914,3.02275,3308.3,3307.6,0.13949947]
[1736500686604,3.02275,3308.3,3307.6,0.10927218]
[1736500687275,0.8072,3308.5,3307.6,0.10927218]
[1736500687472,3.02308,3307.9,3307.6,0.10927218]
[1736500687884,3.02324,3307.7,3307.6,0.10927218]
[1736500688079,3.02324,3307.7,3307.6,0.33027218]
[1736500688299,3.02324,3307.7,3307.6,0.221]
[1736500688486,3.85154,3307.9,3307.6,0.221]
[1736500688689,3.02324,3307.7,3307.6,0.221]
[1736500689179,3.02315,3307.8,3307.0,5.28]
[1736500689383,3.02315,3307.8,3307.1,0.32636644]
[1736500689384,3.408305,3307.8,3307.1,0.32636644]
[1736500689584,3.02315,3307.8,3307.1,0.35660128]
[1736500689824,3.0235,3307.5,3307.1,0.35660128]
[1736500690013,3.0235,3307.5,3307.1,0.32636644]
[1736500690330,3.02356,3307.4,3307.1,0.32636644]
[1736500690903,3.02336,3307.6,3307.1,0.32636644]
[1736500691088,3.02345,3307.5,3307.1,0.35660127]
[1736500691527,3.02315,3307.8,3307.1,0.32636644]
[1736500691829,3.02335,3307.6,3307.1,0.35660128]
[1736500692324,3.0231,3307.9,3307.1,3.35660128]
[1736500693130,3.02292,3308.1,3307.1,3.35660128]
[1736500693284,3.023,3308.0,3307.2,1.16604613]
[1736500693484,3.023,3308.0,3307.3,0.03023019]
[1736500693684,3.023,3308.0,3307.3,0.13488885]
[1736500694231,0.8231,3308.2,3307.3,0.13488885]
[1736500694232,3.02308,3307.9,3307.3,0.13488886]
[1736500694385,3.02308,3307.9,3307.3,0.10465866]
[1736500694787,3.02331,3307.7,3307.3,0.10465866]
[1736500694981,3.02331,3307.7,3307.3,0.13489108]
[1736500696649,3.02302,3308.0,3307.3,0.5870848]
[1736500697349,3.02302,3308.0,3307.3,0.55685238]
[1736500697555,3.02302,3308.0,3307.3,0.58708279]
[1736500698133,3.02302,3308.0,3307.3,0.55685238]
[1736500698449,3.02302,3308.0,3307.4,0.03023042]
[1736500698607,3.02302,3308.0,3307.4,0.31018214]
[1736500700015,3.02302,3308.0,3307.4,0.27995172]
[1736500700328,3.0228,3308.2,3307.4,0.27995172]
[1736500700639,0.7772,3308.4,3307.4,0.27995172]
[1736500700824,0.7772,3308.4,3307.5,0.03022899]
[1736500701027,0.7772,3308.4,3307.6,0.10449168]
[1736500701640,3.02298,3308.0,3307.6,0.10449168]
[1736500701957,3.0227,3308.3,3307.4,0.17531289]
[1736500702139,3.02317,3307.8,3307.7,0.10447186]
[1736500702312,0.37999,3308.3,3307.0,5.28]
[1736500702518,3.02334,3307.6,3307.1,0.221]
[1736500702839,3.02344,3307.5,3307.1,0.221]
[1736500703157,3.02332,3307.7,3307.1,0.25123435]
[1736500705072,3.02298,3308.0,3307.2,0.10432374]
[1736500705245,3.02298,3308.0,3307.3,0.03023126]
[1736500705627,3.02298,3308.0,3307.3,0.13453517]
[1736500707048,3.02281,3308.2,3307.3,0.13453517]
[1736500707263,3.02281,3308.2,3307.3,0.77246569]
[1736500709038,3.02298,3308.0,3307.3,0.74223443]
[1736500710385,3.02298,3308.0,3307.4,0.0302296]
[1736500710892,3.02298,3308.0,3307.5,0.10433436]
[1736500711475,3.02282,3308.2,3307.5,0.10433436]
[1736500712574,0.7564,3308.5,3307.5,0.10433436]
[1736500712779,3.0229,3308.1,3307.5,0.10433436]
[1736500713352,3.0229,3308.1,3307.2,0.03022946]
[1736500713554,3.0229,3308.1,3307.6,0.10431454]
[1736500713751,3.77897,3308.5,3307.4,0.03022946]
[1736500713752,3.02273,3308.3,3307.4,0.03022946]
[1736500713968,3.02273,3308.3,3307.7,0.10429471]
[1736500714177,3.02273,3308.3,3307.4,3.05371946]
[1736500714793,3.02252,3308.5,3307.5,0.10425375]
[1736500714994,3.02252,3308.5,3307.6,0.34602485]
[1736500715348,1.25,3308.7,3307.9,3.02304]
[1736500715551,1.25,3308.7,3308.0,0.25022287]
[1736500715979,1.25,3308.7,3308.1,0.10413482]
[1736500716191,1.25,3308.7,3308.2,14.30022296]
[1736500716353,1.25,3308.7,3308.3,1.66411258]
[1736500716554,0.625,3308.7,3308.3,1.76799821]
[1736500716947,0.625,3308.7,3308.4,0.03022082]
[1736500717411,0.625,3308.7,3308.5,0.10371169]
[1736500717722,3.02389483,3309.3,3308.8,0.015]
[1736500717723,0.00207483,3309.3,3308.8,0.015]
[1736500717875,0.00207483,3309.3,3309.2,5.25863802]
[1736500718070,0.00207483,3309.3,3309.2,8.28884928]
[1736500718276,0.00207483,3309.3,3309.2,8.25863802]
[1736500719012,0.00207483,3309.3,3309.2,8.36176508]
[1736500719224,0.79754757,3311.2,3310.5,3.02068]
[1736500719387,0.8149,3312.0,3310.6,0.63226878]
[1736500719739,1.58527525,3312.4,3310.7,0.22]
[1736500719740,2.23676802,3311.8,3310.7,0.22]
[1736500719895,3.02046,3310.8,3310.6,0.10234511]
[1736500720235,0.7813,3310.8,3310.5,0.22]
[1736500720434,3.02069,3310.5,3310.4,0.22]
[1736500720590,0.8278058,3310.5,3308.9,9.2915]
[1736500720933,3.81339,3309.7,3309.0,0.30798716]
[1736500721132,3.02188,3309.2,3309.0,0.08798716]
[1736500721307,3.02188,3309.2,3308.6,4.238]
[1736500721308,3.0216,3309.5,3309.1,0.22]
[1736500721516,3.02187,3309.2,3309.1,0.22]
[1736500721713,3.0221,3309.0,3308.6,4.238]
[1736500722024,3.0221,3309.0,3308.6,4.6618]
[1736500722324,3.0221,3309.0,3308.7,0.30543723]
[1736500722629,3.0,3309.6,3308.7,0.33565927]
[1736500722791,3.02181,3309.3,3308.7,0.33565927]
[1736500722998,1.10073903,3310.7,3308.9,2.23676802]
[1736500723201,3.0216,3309.6,3309.0,0.2236768]
[1736500723528,2.23676802,3310.3,3309.0,0.08571834]
[1736500723694,3.02151,3309.6,3308.7,3.22]
[1736500724020,3.02105,3310.1,3308.7,3.22]
[1736500724021,3.02162,3309.5,3309.1,0.08569853]
[1736500724229,3.02162,3309.5,3308.7,3.22]
[1736500724678,3.02162,3309.5,3308.8,0.08575795]
[1736500725309,3.02162,3309.5,3308.9,0.22]
[1736500725475,0.7668,3309.8,3309.0,0.22]
[1736500725476,3.02174,3309.4,3309.0,0.22]
[1736500725680,3.02174,3309.4,3309.0,0.30571834]
[1736500728219,3.02178,3309.3,3309.0,0.30571834]
[1736500728525,3.02178,3309.3,3309.1,0.22]
[1736500728737,0.7668,3310.5,3309.1,0.22]
[1736500728962,3.02123,3310.0,3309.2,0.08560954]
[1736500729097,3.02123,3310.0,3309.3,0.03021351]
[1736500729517,0.7668,3310.5,3309.4,0.08556994]
[1736500729696,3.02091,3310.3,3309.5,0.03021142]
[1736500729900,3.02099,3310.2,3309.5,0.03021142]
[1736500730137,3.02099,3310.2,3309.6,0.08541859]
[1736500730431,3.02108,3310.1,3309.6,0.08541859]
[1736500730831,3.00356802,3310.5,3309.1,0.22]
[1736500731033,3.84804,3309.8,3309.7,0.08526079]
[1736500731243,3.84804,3309.8,3309.2,0.22]
[1736500731244,3.02143,3309.7,3309.2,0.22]
[1736500731387,0.8267,3309.8,3309.2,0.22]
[1736500731743,3.02123,3310.0,3309.3,0.30534531]
[1736500732439,0.0008,3309.6,3309.3,0.30534531]
[1736500733132,0.0008,3309.6,3309.4,0.22]
[1736500733492,0.0008,3309.6,3309.5,0.08536423]
[1736500735977,0.0008,3309.6,3309.5,8.34373225]
[1736500737039,0.0008,3309.6,3309.5,3.08536423]
[1736500737406,0.0008,3309.6,3309.5,6.13717326]
[1736500737603,0.0008,3309.6,3309.5,6.10696423]
[1736500738004,0.0008,3309.6,3309.5,3.08536423]
[1736500739149,0.0008,3309.6,3309.5,8.37394284]
[1736500739358,0.0008,3309.6,3309.5,8.34373225]
[1736500741710,3.01966,3311.7,3310.0,0.015]
[1736500741910,3.01966,3311.7,3310.7,6.02049]
[1736500742167,0.828,3312.2,3310.9,3.0]
[1736500742467,3.01933,3312.0,3311.0,3.05039636]
[1736500742605,3.01943,3311.9,3311.0,0.0847163]
[1736500743208,0.7891,3311.8,3311.0,0.0847163]
[1736500743417,3.02005,3311.2,3311.1,0.234]
[1736500743710,3.01998,3311.3,3311.0,0.234]
[1736500743947,3.01998,3311.3,3311.1,0.31869651]
[1736500744215,3.01998,3311.3,3310.4,0.03020423]
[1736500744216,3.01998,3311.3,3311.2,0.234]
[1736500744411,0.8167,3311.5,3311.2,0.234]
[1736500744610,3.0196,3311.7,3310.4,0.03020423]
[1736500744611,3.01996,3311.3,3310.4,0.03020423]
[1736500744811,2.99226802,3311.2,3310.5,0.234]
[1736500745011,3.02031,3311.0,3310.6,0.234]
[1736500745255,3.02036,3310.9,3310.6,0.234]
[1736500745612,0.7555,3311.2,3310.6,0.234]
[1736500745849,0.7555,3311.2,3309.9,0.03020783]
[1736500746030,3.02065,3310.6,3310.0,0.234]
[1736500746227,3.82475,3310.6,3310.1,0.234]
[1736500746429,0.8041,3310.6,3310.1,0.234]
[1736500746613,3.0208,3310.4,3309.4,2.23676802]
[1736500746966,3.02087,3310.3,3309.5,0.234]
[1736500747116,3.02089,3310.3,3309.6,0.234]
[1736500747548,0.625,3310.9,3310.1,2.23676802]
[1736500747779,0.625,3310.9,3310.2,3.03020487]
[1736500747990,0.625,3310.9,3310.2,3.11474972]
[1736500748503,0.625,3310.9,3310.2,0.08454485]
[1736500748648,3.64533,3310.9,3310.2,0.08454485]
[1736500749194,3.64533,3310.9,3310.3,0.08451442]
[1736500749545,3.64533,3310.9,3310.0,0.03020634]
[1736500749789,3.64533,3310.9,3310.4,0.08449463]
[1736500749989,3.64533,3310.9,3310.5,0.234]
[1736500750146,3.64533,3310.9,3310.5,0.31847484]
[1736500751188,0.625,3310.9,3310.5,0.31847484]
[1736500751620,0.625,3310.9,3310.6,0.03020164]
[1736500751798,0.625,3310.9,3310.8,3.02041]
[1736500752152,0.625,3310.9,3310.8,3.13497751]
[1736500752353,0.625,3310.9,3310.8,5.38674553]
[1736500752567,0.625,3310.9,3310.8,5.35654565]
[1736500753076,0.625,3310.9,3310.8,5.34154565]
[1736500753677,0.625,3310.9,3310.8,8.35654565]
[1736500753983,0.625,3310.9,3310.8,6.11977763]
[1736500754184,0.625,3310.9,3310.8,6.10477763]
[1736500754391,0.625,3310.9,3310.8,6.11227763]
[1736500755788,0.625,3310.9,3310.8,6.11977763]
[1736500758113,0.625,3310.9,3310.8,6.35377763]
[1736500760285,0.625,3310.9,3310.8,6.10477763]
[1736500760498,0.625,3310.9,3310.8,0.31836763]
[1736500762319,0.625,3310.9,3310.8,3.33877763]
[1736500763343,0.625,3310.9,3310.8,0.31836763]
[1736500765836,0.625,3310.9,3310.8,0.08436763]
[1736500766009,0.625,3310.9,3310.8,0.31836763]
[1736500766340,0.625,3310.9,3310.8,0.31434358]
[1736500768134,0.625,3310.9,3310.8,6.33475358]
[1736500768435,0.625,3310.9,3310.8,6.90725358]
[1736500769001,0.625,3310.9,3310.8,6.34975358]
[1736500769515,0.625,3310.9,3310.8,6.90725358]
[1736500770551,0.625,3310.9,3310.8,7.52132952]
[1736500771057,0.17,3312.4,3311.4,0.015]
[1736500771263,0.17,3312.4,3311.9,3.01937]
[1736500771427,0.17,3312.4,3312.0,3.26418733]
[1736500771626,0.17,3312.4,3312.0,0.30859513]
[1736500773621,0.17,3312.4,3312.0,0.07459513]
[1736500773828,0.17,3312.4,3312.1,0.246]
[1736500774327,3.01906,3312.3,3312.1,0.246]
[1736500774657,3.01906,3312.3,3312.2,0.07126292]
[1736500774822,3.01906,3312.3,3312.1,0.246]
[1736500779414,0.17,3312.4,3312.1,0.246]
[1736500779928,0.17,3312.4,3312.2,0.07126292]
[1736500780712,0.17,3312.4,3312.3,0.246]
[1736500780951,3.18895,3312.4,3312.3,0.246]
[1736500781113,0.17,3312.4,3311.5,3.0]
[1736500781308,3.01914,3312.3,3311.6,0.31748217]
[1736500783321,0.17,3312.4,3311.7,0.03019195]
[1736500783630,3.01914,3312.2,3311.6,0.31748217]
[1736500783816,3.01914,3312.2,3311.8,0.07145851]
[1736500784013,3.01914,3312.2,3311.6,0.246]
[1736500784257,0.8085,3312.1,3311.9,0.07143874]
[1736500784454,3.01932,3312.0,3311.6,0.246]
[1736500784831,0.8085,3312.1,3311.7,0.07173251]
[1736500786818,0.8085,3312.1,3311.7,0.10192651]
[1736500787273,3.77449,3312.4,3311.7,0.10192651]
[1736500787624,0.7555,3312.4,3311.7,0.10192651]
[1736500787867,0.7555,3312.4,3311.7,0.1019221]
[1736500788737,0.17,3312.6,3311.8,3.01949]
[1736500788965,0.17,3312.6,3312.0,3.0]
[1736500789269,0.17,3312.6,3312.1,0.03018691]
[1736500789465,0.17,3312.6,3312.1,0.10175029]
[1736500790423,0.17,3312.6,3312.1,0.07156338]
[1736500790629,3.01887,3312.5,3312.1,0.07156338]
[1736500790882,3.01887,3312.5,3312.2,0.246]
[1736500791089,3.01887,3312.5,3312.3,0.246]
[1736500793838,0.7925,3312.1,3311.1,5.25688802]
[1736500794033,0.7925,3312.1,3311.2,0.246]
[1736500794234,0.7925,3312.1,3311.2,6.33773898]
[1736500794433,0.7925,3312.1,3311.3,0.246]
[1736500794864,0.7925,3312.1,3311.4,0.07165943]
[1736500796389,0.7925,3312.1,3311.5,0.246]
[1736500796854,0.7925,3312.1,3311.6,0.07161456]
[1736500797660,3.0194,3312.0,3311.7,0.246]
[1736500797844,3.0194,3312.0,3311.0,3.0]
[1736500798044,3.0194,3312.0,3311.8,0.07165976]
[1736500798279,3.0194,3312.0,3311.1,0.246]
[1736500798479,0.7882,3311.9,3310.5,2.55262926]
[1736500798636,0.8233,3311.5,3311.2,0.31777841]
[1736500798837,3.01996,3311.3,3311.2,0.246]
[1736500799041,3.01996,3311.3,3310.6,0.61350583]
[1736500799268,3.02014,3311.1,3310.4,2.23676802]
[1736500799580,3.01999,3311.3,3310.5,0.246]
[1736500799882,3.84313,3311.5,3310.5,0.246]
[1736500800178,3.02013,3311.2,3310.6,0.246]
[1736500800494,3.02013,3311.2,3310.7,0.246]
[1736500801074,0.8233,3311.5,3310.7,0.246]
[1736500801279,3.01988,3311.4,3310.5,3.0]
[1736500801579,3.02006,3311.2,3310.6,0.246]
[1736500801761,3.02006,3311.2,3310.7,0.246]
[1736500802076,3.02006,3311.2,3310.4,0.03020233]
[1736500802278,3.02006,3311.2,3310.5,0.246]
[1736500802479,3.02006,3311.2,3310.6,0.03020233]
[1736500802680,3.02006,3311.2,3310.7,0.246]
[1736500802853,0.8233,3311.5,3310.7,0.246]
[1736500803051,3.02008,3311.2,3310.7,0.246]
[1736500804802,0.8233,3311.5,3310.8,0.03020235]
[1736500805923,3.84309,3311.5,3310.7,0.246]
[1736500806111,3.01988,3311.4,3310.7,0.246]
[1736500808225,6.02663,3312.3,3310.8,0.03019965]
[1736500808226,1.31,3312.2,3310.8,0.03019965]
[1736500808434,3.0197,3311.6,3310.8,0.03019965]
[1736500808667,3.01978,3311.5,3310.8,0.03019965]
[1736500808827,0.76,3311.4,3310.7,0.246]
[1736500809445,3.77987,3311.4,3310.7,0.246]
[1736500809619,3.77987,3311.4,3310.8,0.241]
[1736500809819,3.77987,3311.4,3310.8,0.31364163]
[1736500811337,3.77987,3311.4,3310.9,0.03019968]
[1736500811787,3.77987,3311.4,3311.0,0.07260206]
[1736500812167,3.81924,3311.8,3311.0,0.07260206]
[1736500812467,3.81924,3311.8,3310.8,3.26141]
[1736500812671,3.81924,3311.8,3311.1,0.07258228]
[1736500812876,0.381924,3311.7,3310.9,2.2669646]
[1736500813079,0.7997,3312.5,3311.2,2.30932522]
[1736500813280,0.7997,3312.5,3311.3,0.03019256]
[1736500813432,3.01896,3312.4,3311.4,3.01984]
[1736500813777,0.7997,3312.5,3311.5,0.03019229]
[1736500813926,3.81858,3312.5,3311.5,5.35878084]
[1736500814296,0.381858,3312.4,3311.6,3.0]
[1736500814434,0.381858,3312.4,3311.7,0.241]
[1736500814636,0.381858,3312.4,3311.7,0.31306098]
[1736500817895,0.381858,3312.4,3311.8,0.241]
[1736500818184,0.381858,3312.4,3311.9,0.07129048]
[1736500818393,3.01914,3312.2,3311.9,0.07129048]
[1736500818528,0.301914,3312.1,3311.9,0.07129048]
[1736500818728,3.01925,3312.1,3311.9,0.07129048]
[1736500818930,3.78022,3312.0,3311.9,0.07129048]
[1736500819170,3.78022,3312.0,3311.9,0.241]
[1736500820138,0.7609,3312.0,3311.9,0.241]
[1736500820595,0.7609,3312.0,3310.7,0.2488]
[1736500820596,3.01971,3311.6,3310.7,0.2488]
[1736500820764,0.301971,3311.5,3310.8,0.241]
[1736500821079,0.7529,3311.7,3310.7,0.2488]
[1736500821285,3.01991,3311.4,3310.8,0.241]
[1736500821445,3.01991,3311.4,3310.8,0.27120041]
[1736500821846,0.7529,3311.7,3310.8,0.27120041]
[1736500822087,3.01978,3311.5,3310.8,0.27120041]
[1736500822293,3.397048,3311.5,3310.8,0.27120041]
[1736500822861,0.7765,3312.1,3310.8,3.27120041]
[1736500823066,3.01949,3311.9,3310.9,3.0203]
[1736500823270,3.01949,3311.9,3311.0,0.03019622]
[1736500823660,3.01949,3311.9,3311.0,3.03019622]
[1736500823863,3.321449,3311.8,3311.0,3.03019622]
[1736500824064,0.301949,3311.8,3311.0,3.03019622]
[1736500824276,3.01939,3312.0,3311.0,3.03019622]
[1736500824784,3.01939,3312.0,3311.1,0.07153872]
[1736500824987,0.7765,3312.1,3311.1,0.07153872]
[1736500824988,0.7765,3312.1,3311.2,0.03019624]
[1736500825291,0.7765,3312.1,3311.2,3.10203299]
[1736500825490,0.379565,3312.1,3311.2,3.10203299]
[1736500825651,3.01907,3312.3,3311.4,3.0]
[1736500825850,3.01907,3312.3,3311.5,0.03019221]
[1736500826181,3.01907,3312.3,3311.5,0.07167147]
[1736500826789,3.01927,3312.1,3311.5,0.07167147]
[1736500826991,0.7892,3312.4,3311.0,2.23676802]
[1736500827191,3.01938,3312.0,3311.6,0.07165169]
[1736500827359,3.01938,3312.0,3311.7,0.241]
[1736500827702,3.01944,3311.9,3311.7,0.31260013]
[1736500827999,3.321384,3311.9,3311.7,0.31260013]
[1736500829901,0.301944,3311.9,3311.7,0.31260013]
[1736500830104,3.01905,3312.3,3311.7,0.31260013]
[1736500830255,3.01934,3312.0,3311.7,0.31260013]
[1736500832305,3.01934,3312.0,3311.7,0.34136275]
[1736500838047,0.7892,3312.4,3311.7,0.34136275]
[1736500838256,3.0188,3312.6,3311.7,0.34136275]
[1736500838398,3.0188,3312.6,3311.8,0.0301911]
[1736500838751,3.0188,3312.6,3311.8,0.13083986]
[1736500838935,0.8252,3312.7,3311.8,0.13083986]
[1736500839136,3.0189,3312.5,3311.8,0.10064876]
[1736500839463,3.40331,3312.5,3311.8,0.13083987]
[1736500839615,0.38441,3312.5,3311.8,0.13083987]
[1736500840620,0.8252,3312.7,3311.8,3.15032987]
[1736500840924,3.01868,3312.7,3311.8,3.12013876]
[1736500841341,3.01868,3312.7,3311.8,0.10064876]
[1736500841503,0.9773,3312.9,3311.8,0.10064876]
[1736500841707,3.01916,3312.2,3311.8,0.10064876]
[1736500841956,0.8073,3312.7,3311.9,0.232]
[1736500842175,0.8073,3312.7,3312.0,0.232]
[1736500842372,0.7663,3312.1,3311.0,2.23676802]
[1736500842530,3.01941,3311.9,3311.0,2.23676802]
[1736500842733,3.01941,3311.9,3311.2,0.60373065]
[1736500843085,3.01941,3311.9,3311.1,0.232]
[1736500843628,3.01941,3311.9,3311.1,3.232]
[1736500843878,3.78556,3312.1,3311.1,3.25212]
[1736500844044,3.78556,3312.1,3311.2,0.03019571]
[1736500844242,3.78556,3312.1,3311.2,3.03019571]
[1736500845140,0.7663,3312.1,3311.2,0.03019571]
[1736500845360,3.01936,3312.0,3311.1,1.16039821]
[1736500846668,3.01936,3312.0,3311.1,0.83518621]
[1736500848186,3.01936,3312.0,3311.2,0.03019573]
[1736500848491,3.01936,3312.0,3311.1,0.83518621]
[1736500848639,3.01943,3311.9,3311.2,0.232]
[1736500849140,0.7663,3312.1,3310.8,2.23676802]
[1736500849344,3.01954,3311.8,3310.9,0.26219583]
[1736500849536,0.301954,3311.7,3310.9,0.26219583]
[1736500849739,3.01943,3311.9,3311.0,3.0]
[1736500850170,3.01943,3311.9,3311.1,0.03019693]
[1736500850783,3.01954,3311.8,3311.2,0.232]
[1736500851639,3.01969,3311.6,3311.3,0.232]
[1736500851839,3.01941,3311.9,3311.3,0.232]
[1736500852085,0.377131,3311.8,3311.3,0.232]
[1736500852234,3.01977,3311.6,3311.3,0.232]
[1736500852970,3.01988,3311.4,3310.7,0.2488]
[1736500853168,3.01988,3311.4,3310.8,0.232]
[1736500853394,3.01988,3311.4,3310.9,0.232]
[1736500853588,0.380888,3311.3,3310.9,0.232]
[1736500853911,0.380888,3311.3,3310.9,0.33317895]
[1736500854810,0.380888,3311.3,3311.0,0.232]
[1736500855011,0.380888,3311.3,3311.0,0.3331583]
[1736500855375,0.380888,3311.3,3311.1,0.232]
[1736500855757,0.380888,3311.3,3311.2,0.101117]
[1736500856187,3.400848,3311.3,3311.2,0.101117]
[1736500857029,0.380888,3311.3,3310.7,0.2488]
[1736500857206,3.02015,3311.1,3310.8,0.232]
[1736500857358,3.02015,3311.1,3310.9,0.232]
[1736500857560,3.02015,3311.1,3310.7,0.2488]
[1736500857769,3.02015,3311.1,3310.8,0.232]
[1736500858458,3.02015,3311.1,3310.7,0.2488]
[1736500858665,3.01997,3311.3,3310.8,0.232]
[1736500858892,3.400867,3311.3,3310.8,0.232]
[1736500859603,3.02006,3311.2,3310.8,0.232]
[1736500859956,0.380897,3311.3,3310.7,0.2488]
[1736500860160,0.789,3311.5,3310.7,0.2488]
[1736500860499,3.02026,3311.0,3310.8,0.232]
[1736500860845,3.02006,3311.2,3310.8,0.232]
[1736500861051,3.01987,3311.4,3310.8,0.232]
[1736500861543,3.01971,3311.6,3310.9,0.03020211]
[1736500861832,4.220861,3311.8,3310.8,3.2524]
[1736500862038,3.01985,3311.5,3310.8,0.232]
[1736500863391,3.01985,3311.5,3310.9,0.03020004]
[1736500863936,0.4220861,3311.7,3310.9,0.03020004]
[1736500864140,0.4220861,3311.7,3310.8,0.232]
[1736500864141,3.02023,3311.0,3310.8,0.232]
[1736500864293,3.322253,3311.0,3310.8,0.232]
[1736500864500,3.02005,3311.3,3310.8,0.232]
[1736500864738,3.8292,3311.5,3310.8,0.232]
[1736500864936,0.4220861,3311.7,3310.9,0.03020269]
[1736500865130,3.01972,3311.6,3310.8,0.232]
[1736500865761,3.82892,3311.8,3310.8,0.232]
[1736500865960,0.8094,3311.8,3310.9,0.03019834]
[1736500866164,0.8094,3311.8,3310.8,0.232]
[1736500866554,0.8094,3311.8,3310.9,0.03019834]
[1736500866884,3.01972,3311.6,3310.8,0.232]
[1736500867173,0.382912,3311.6,3310.8,0.232]
[1736500867335,0.8094,3311.8,3310.8,0.232]
[1736500867544,3.01986,3311.5,3310.8,164.5523]
[1736500868683,3.01961,3311.7,3310.8,164.5523]